bitfinex/quotes_BTCUSD_20250204
["timestamp","ask_amount","ask_price","bid_price","bid_amount"]
[1738651557290,0.03136914,99349.0,99328.0,0.16366943]
[1738651557557,0.150995,99341.0,99330.0,0.15101]
[1738651557850,0.00657447,99340.0,99330.0,0.15101]
[1738651558151,0.173998,99339.0,99338.0,0.001]
[1738651558588,0.1805705,99339.0,99338.0,0.001]
[1738651559313,0.0295725,99339.0,99338.0,0.001]
[1738651559514,0.0295725,99339.0,99330.0,0.151011]
[1738651559742,0.0295725,99339.0,99329.0,0.16366943]
[1738651559743,0.0065725,99339.0,99331.0,0.10238506]
[1738651559948,0.150969,99358.0,99347.0,0.150985]
[1738651560156,0.0001068,99359.0,99348.0,0.16366943]
[1738651560359,0.00653233,99357.0,99356.0,0.150972]
[1738651560570,0.0001068,99359.0,99358.0,0.228569]
[1738651560771,0.0001068,99359.0,99358.0,0.33095406]
[1738651561802,0.0001068,99359.0,99358.0,0.37619586]
[1738651562950,0.08877341,99374.0,99358.0,0.22522686]
[1738651563161,0.08877341,99374.0,99373.0,0.231846]
[1738651563364,0.08877341,99374.0,99373.0,0.53243106]
[1738651563983,0.0001068,99392.0,99377.0,0.30094]
[1738651564190,0.0001068,99392.0,99377.0,0.40332506]
[1738651564391,0.0001068,99392.0,99377.0,0.40323446]
[1738651564612,0.0001068,99392.0,99377.0,0.48413446]
[1738651564809,0.0001068,99392.0,99377.0,0.49559861]
[1738651565008,0.0001068,99392.0,99377.0,0.50706276]
[1738651566242,0.0001068,99392.0,99391.0,0.381819]
[1738651566468,0.0001068,99392.0,99391.0,0.48420406]
[1738651567481,0.0001068,99394.0,99391.0,0.48420406]
[1738651567482,0.150828,99451.0,99395.0,0.201217]
[1738651567713,0.08877341,99454.0,99402.0,0.0622]
[1738651567869,0.08877341,99454.0,99410.0,0.46547506]
[1738651568075,0.01684891,99411.0,99410.0,0.71602869]
[1738651568751,0.08877341,99454.0,99421.0,0.150873]
[1738651568911,0.00914154,99422.0,99421.0,0.40325806]
[1738651569343,0.00914154,99422.0,99421.0,0.47895806]
[1738651570729,0.00914154,99422.0,99421.0,0.47995806]
[1738651570946,0.00914154,99422.0,99421.0,0.50934868]
[1738651571139,0.00914154,99422.0,99421.0,0.47895806]
[1738651571341,0.00914154,99422.0,99421.0,0.48746615]
[1738651572033,0.00914154,99422.0,99421.0,0.52009945]
[1738651572231,0.00914154,99422.0,99421.0,0.48746615]
[1738651573696,0.00914154,99422.0,99421.0,0.48846615]
[1738651575816,0.00914154,99422.0,99421.0,0.33846615]
[1738651576441,0.00914154,99422.0,99421.0,0.33746615]
[1738651576820,0.00914154,99422.0,99421.0,0.48846615]
[1738651577114,0.00914154,99422.0,99421.0,0.52082493]
[1738651577346,0.00914154,99422.0,99421.0,0.54883907]
[1738651577588,0.00914154,99422.0,99421.0,0.54983907]
[1738651577790,0.00914154,99422.0,99421.0,0.54883907]
[1738651578201,0.00914154,99422.0,99421.0,0.54983907]
[1738651578795,0.00914154,99422.0,99421.0,0.58283907]
[1738651579337,0.00914154,99422.0,99421.0,0.58183907]
[1738651579536,0.00914154,99422.0,99421.0,0.54883907]
[1738651579739,0.00914154,99422.0,99421.0,0.52082493]
[1738651579972,0.00914154,99422.0,99421.0,0.51982493]
[1738651580294,0.00914154,99422.0,99421.0,0.52982493]
[1738651580499,0.00914154,99422.0,99421.0,0.52082493]
[1738651580704,0.00914154,99422.0,99421.0,0.48746615]
[1738651580908,0.00914154,99422.0,99421.0,0.54277007]
[1738651581277,0.00914154,99422.0,99421.0,0.53377007]
[1738651581690,0.00914154,99422.0,99421.0,0.41276615]
[1738651582620,0.00924834,99422.0,99421.0,0.41276615]
[1738651583009,0.00924834,99422.0,99421.0,0.41176615]
[1738651583212,0.00924834,99422.0,99421.0,0.41276615]
[1738651583593,0.00924834,99422.0,99421.0,0.41176615]
[1738651583931,0.00924834,99422.0,99421.0,0.41276615]
[1738651585010,0.00924834,99422.0,99421.0,0.25425806]
[1738651587082,0.00924834,99422.0,99421.0,0.40425806]
[1738651614712,0.00924834,99422.0,99421.0,0.43293736]
[1738651615076,0.00924834,99422.0,99421.0,0.40425806]
[1738651615620,0.00924834,99422.0,99421.0,0.43294568]
[1738651616714,0.00924834,99422.0,99421.0,0.40425806]
[1738651617154,0.00924834,99422.0,99421.0,0.43297318]
[1738651618742,0.00924834,99422.0,99421.0,0.4320851]
[1738651619384,0.00924834,99422.0,99421.0,0.43119702]
[1738651621489,3.4e-07,99422.0,99421.0,0.43119702]
[1738651622692,3.4e-07,99422.0,99421.0,0.59299702]
[1738651623185,3.4e-07,99422.0,99421.0,0.59399702]
[1738651624110,3.4e-07,99422.0,99421.0,0.51199702]
[1738651624931,0.01084383,99434.0,99433.0,0.300855]
[1738651625260,0.01084383,99434.0,99433.0,0.43195518]
[1738651625874,0.01084383,99434.0,99433.0,0.45195518]
[1738651626082,0.01084383,99434.0,99433.0,0.42324006]
[1738651627302,0.01084383,99434.0,99433.0,0.43201768]
[1738651627705,0.01084383,99434.0,99433.0,0.42324006]
[1738651630283,0.01084383,99434.0,99433.0,0.45192242]
[1738651630544,8.3e-07,99434.0,99433.0,0.45192242]
[1738651630696,8.3e-07,99434.0,99433.0,0.70197605]
[1738651630896,0.0001068,99452.0,99451.0,0.150828]
[1738651631098,0.0001068,99452.0,99451.0,0.40455012]
[1738651631309,8e-07,99452.0,99451.0,0.43621306]
[1738651631507,8e-07,99452.0,99451.0,0.69486244]
[1738651631714,0.7903781,99460.0,99459.0,0.15]
[1738651631915,0.75631949,99460.0,99459.0,0.49243869]
[1738651632116,0.75631949,99460.0,99459.0,0.52123539]
[1738651632317,0.75631949,99460.0,99459.0,0.25252686]
[1738651633367,0.75631949,99460.0,99459.0,0.25352686]
[1738651633570,0.75631949,99460.0,99459.0,0.25252686]
[1738651633768,0.75631949,99460.0,99459.0,0.26252686]
[1738651634372,0.67588349,99460.0,99459.0,0.28552686]
[1738651634651,0.65577449,99460.0,99459.0,0.28552686]
[1738651635008,0.65577449,99460.0,99459.0,0.28652686]
[1738651635385,0.65577449,99460.0,99459.0,0.28552686]
[1738651635607,0.65577449,99460.0,99459.0,0.28652686]
[1738651636568,0.65577449,99460.0,99459.0,0.28552686]
[1738651636772,0.65577449,99460.0,99459.0,0.28652686]
[1738651638954,0.6496151,99460.0,99459.0,0.28652686]
[1738651639139,0.65520167,99460.0,99459.0,0.28652686]
[1738651640171,0.61498367,99460.0,99459.0,0.28652686]
[1738651640394,0.57476567,99460.0,99459.0,0.29652686]
[1738651640591,0.57476567,99460.0,99459.0,0.29675093]
[1738651641138,0.57487237,99460.0,99459.0,0.29675093]
[1738651641881,0.55476337,99460.0,99459.0,0.29675093]
[1738651642092,0.47432737,99460.0,99459.0,0.29753649]
[1738651642717,0.47432737,99460.0,99459.0,1.16183649]
[1738651644776,0.41400037,99460.0,99459.0,1.16183649]
[1738651646363,0.41400037,99460.0,99459.0,1.16105093]
[1738651648025,0.39389137,99460.0,99459.0,1.16105093]
[1738651648203,0.3480868,99460.0,99459.0,1.16105093]
[1738651648412,0.3279778,99460.0,99459.0,1.16105093]
[1738651650143,0.3279778,99460.0,99459.0,1.15105093]
[1738651650345,0.3279778,99460.0,99459.0,1.16105093]
[1738651650553,0.3279778,99460.0,99459.0,1.15205093]
[1738651652682,0.3279778,99460.0,99459.0,1.14205093]
[1738651652899,0.3279778,99460.0,99459.0,1.15205093]
[1738651653553,0.3279778,99460.0,99459.0,1.14205093]
[1738651653914,0.3279778,99460.0,99459.0,1.15205093]
[1738651654524,0.3279778,99460.0,99459.0,0.60945093]
[1738651655142,0.3279778,99460.0,99459.0,0.59945093]
[1738651655344,0.3279778,99460.0,99459.0,0.56645093]
[1738651655549,0.3279778,99460.0,99459.0,0.24475093]
[1738651655727,0.33356624,99460.0,99459.0,0.10375093]
[1738651655924,0.40936624,99460.0,99459.0,0.10375093]
[1738651656147,0.45446624,99460.0,99459.0,0.10375093]
[1738651656520,0.45446624,99460.0,99459.0,0.10275093]
[1738651657018,0.45446624,99460.0,99459.0,0.10375093]
[1738651657500,0.45446624,99460.0,99459.0,0.00136587]
[1738651657704,0.45446624,99460.0,99459.0,0.10375093]
[1738651658118,0.45446624,99460.0,99459.0,0.10275093]
[1738651658276,0.4488778,99460.0,99459.0,0.10375093]
[1738651658684,0.45445735,99460.0,99459.0,0.10275093]
[1738651658888,0.45445735,99460.0,99459.0,0.00136587]
[1738651659310,0.60527135,99460.0,99459.0,0.00136587]
[1738651659508,0.45445735,99460.0,99459.0,0.00136587]
[1738651659905,0.45445735,99460.0,99459.0,0.10375093]
[1738651660118,0.45445735,99460.0,99459.0,0.25456593]
[1738651660558,0.4488778,99460.0,99459.0,0.25456593]
[1738651660779,0.45444473,99460.0,99459.0,0.10375093]
[1738651660997,0.45444473,99460.0,99459.0,0.00136587]
[1738651661599,0.45444473,99460.0,99459.0,0.00036587]
[1738651662017,0.45444473,99460.0,99459.0,0.00136587]
[1738651664134,0.45444473,99460.0,99459.0,0.00036587]
[1738651664616,0.45444473,99460.0,99459.0,0.00136587]
[1738651673966,0.4488778,99460.0,99459.0,0.00136587]
[1738651674169,0.37863904,99460.0,99459.0,0.10375093]
[1738651674376,0.33353904,99460.0,99459.0,0.10375093]
[1738651674583,0.33353904,99460.0,99459.0,0.25375093]
[1738651675747,0.33353904,99460.0,99459.0,0.25275093]
[1738651676199,0.33353904,99460.0,99459.0,0.25375093]
[1738651679449,0.33353904,99460.0,99459.0,0.25275093]
[1738651679646,0.27321204,99460.0,99459.0,0.28575093]
[1738651679847,0.19277604,99460.0,99459.0,0.28575093]
[1738651680130,0.17266704,99460.0,99459.0,0.29575093]
[1738651680650,0.13416577,99460.0,99459.0,0.36155093]
[1738651681014,0.02805953,99460.0,99459.0,0.37155093]
[1738651681169,0.02805953,99460.0,99459.0,0.33855093]
[1738651681370,0.02805953,99460.0,99459.0,0.32855093]
[1738651681825,0.02805953,99460.0,99459.0,0.25275093]
[1738651682834,0.02805953,99460.0,99459.0,0.10275093]
[1738651683913,0.03364409,99460.0,99459.0,0.10275093]
[1738651684117,0.03364409,99460.0,99459.0,0.10408809]
[1738651684473,0.02805953,99460.0,99459.0,0.10275093]
[1738651684611,0.02805953,99460.0,99459.0,0.25275093]
[1738651689241,5.3e-07,99460.0,99459.0,0.25275093]
[1738651689588,5.3e-07,99460.0,99459.0,0.26275093]
[1738651689804,5.3e-07,99460.0,99459.0,0.36865093]
[1738651690014,0.02818383,99468.0,99467.0,0.300803]
[1738651690233,0.02818383,99468.0,99467.0,0.64324169]
[1738651690613,0.02818383,99468.0,99467.0,0.66624169]
[1738651691856,0.02818383,99468.0,99467.0,0.67514079]
[1738651692056,0.02809357,99468.0,99467.0,0.67514079]
[1738651692410,0.02809357,99468.0,99467.0,0.65204079]
[1738651692611,0.02809357,99468.0,99467.0,0.88204079]
[1738651693222,0.02809357,99468.0,99467.0,0.64198716]
[1738651693399,0.02809357,99468.0,99467.0,0.49198716]
[1738651693967,0.02809357,99468.0,99467.0,0.64198716]
[1738651694200,0.02809357,99468.0,99467.0,0.33238506]
[1738651694739,0.02809357,99468.0,99467.0,0.10238506]
[1738651695808,0.02809357,99468.0,99467.0,0.25372204]
[1738651696008,0.02809357,99468.0,99467.0,0.25238506]
[1738651696216,0.02809357,99468.0,99467.0,0.48238506]
[1738651699880,0.02809357,99468.0,99467.0,0.25238506]
[1738651700632,0.02809357,99468.0,99467.0,0.25260934]
[1738651701104,0.02820037,99468.0,99467.0,0.25260934]
[1738651703625,0.02820037,99468.0,99467.0,0.49260934]
[1738651707915,0.02820037,99468.0,99467.0,0.73266297]
[1738651709423,0.02820037,99468.0,99467.0,0.76138204]
[1738651709770,0.02820037,99468.0,99467.0,0.73266297]
[1738651710389,0.02820037,99468.0,99467.0,0.76138267]
[1738651710959,0.02820037,99468.0,99467.0,0.77138267]
[1738651713672,0.02820037,99468.0,99467.0,0.92218567]
[1738651715532,0.02820037,99468.0,99467.0,0.89346597]
[1738651715970,0.07590037,99468.0,99467.0,0.65341234]
[1738651716091,0.07590037,99468.0,99467.0,0.41341234]
[1738651716540,0.02820037,99468.0,99467.0,0.41341234]
[1738651721209,0.02820037,99468.0,99467.0,0.44214727]
[1738651722234,0.02820037,99468.0,99467.0,0.68214727]
[1738651723104,0.02820037,99468.0,99467.0,0.70514727]
[1738651725236,0.02820037,99468.0,99467.0,0.68214727]
[1738651725843,0.02820037,99468.0,99467.0,0.70514727]
[1738651729744,0.02820037,99468.0,99467.0,0.68214727]
[1738651732778,0.02820037,99468.0,99467.0,0.65341234]
[1738651734820,0.02820037,99468.0,99467.0,0.41341234]
[1738651737218,0.10900037,99468.0,99467.0,0.26341234]
[1738651737423,0.10900037,99468.0,99467.0,0.11260934]
[1738651737424,0.16429994,99468.0,99467.0,0.11260934]
[1738651738034,0.15870037,99468.0,99467.0,0.11260934]
[1738651738451,0.16429502,99468.0,99467.0,0.11260934]
[1738651741275,0.16429502,99468.0,99467.0,0.01022428]
[1738651741692,0.31509702,99468.0,99467.0,0.01022428]
[1738651741900,0.16429502,99468.0,99467.0,0.01022428]
[1738651743129,0.18306051,99468.0,99467.0,0.01022428]
[1738651746454,0.16429502,99468.0,99467.0,0.01022428]
[1738651748210,0.18305712,99468.0,99467.0,0.01022428]
[1738651748408,0.201071,99467.0,99459.0,0.00036587]
[1738651748619,0.275414,99460.0,99459.0,0.00036587]
[1738651749264,0.28098151,99460.0,99459.0,0.00036587]
[1738651750084,0.2997132,99460.0,99459.0,0.00036587]
[1738651750306,0.2997132,99460.0,99430.0,0.15]
[1738651750307,0.0762,99459.0,99430.0,0.15]
[1738651750507,0.0471,99450.0,99431.0,0.25324306]
[1738651750721,0.0762,99442.0,99432.0,0.150856]
[1738651750930,0.0762,99442.0,99433.0,0.10238506]
[1738651751123,0.00552556,99441.0,99435.0,0.150852]
[1738651751508,0.00552556,99441.0,99439.0,0.150844]
[1738651751706,0.0471,99450.0,99441.0,0.150842]
[1738651751992,0.0471,99450.0,99436.0,0.10238506]
[1738651751993,0.00552358,99440.0,99436.0,0.10238506]
[1738651752309,0.201114,99446.0,99432.0,0.150856]
[1738651752510,0.00552161,99439.0,99431.0,0.15]
[1738651752629,0.0471,99450.0,99431.0,0.25238506]
[1738651752830,0.00551964,99438.0,99431.0,0.25238506]
[1738651753031,0.0471,99450.0,99432.0,0.10238506]
[1738651753246,0.19793,99450.0,99440.0,0.150843]
[1738651753445,0.150831,99449.0,99440.0,0.150843]
[1738651754093,0.0471,99450.0,99440.0,0.150843]
[1738651754334,0.0471,99450.0,99432.0,0.10238506]
[1738651754483,0.19793,99450.0,99441.0,0.150842]
[1738651754899,0.19793,99450.0,99434.0,0.201138]
[1738651755099,0.0475233,99449.0,99431.0,0.15]
[1738651755271,0.150841,99442.0,99433.0,0.150854]
[1738651755477,0.150838,99444.0,99434.0,0.150853]
[1738651755675,0.0794,99434.0,99431.0,0.15]
[1738651755880,0.201142,99432.0,99411.0,0.00022428]
[1738651756088,0.228972,99422.0,99411.0,0.00022428]
[1738651756290,0.0781,99422.0,99411.0,0.00022428]
[1738651756505,0.0781,99422.0,99412.0,0.201181]
[1738651756710,0.0495,99433.0,99411.0,0.00022428]
[1738651756711,0.0495,99433.0,99413.0,0.15]
[1738651756922,0.1293,99433.0,99432.0,0.150856]
[1738651757131,0.1293,99433.0,99422.0,0.10238506]
[1738651757335,0.1293,99433.0,99432.0,0.150856]
[1738651757943,0.1293,99433.0,99429.0,0.15086]
[1738651758155,0.1293,99433.0,99421.0,0.00022428]
[1738651758559,0.201142,99432.0,99421.0,0.00022428]
[1738651758772,0.150871,99423.0,99421.0,0.00022428]
[1738651758982,0.1256,99422.0,99421.0,0.00022428]
[1738651763985,0.075,99432.0,99430.0,0.150858]
[1738651764626,0.075,99432.0,99426.0,0.150865]
[1738651764819,0.075,99432.0,99429.0,0.150861]
[1738651765024,0.075,99432.0,99430.0,0.150858]
[1738651765254,0.075,99432.0,99427.0,0.150864]
[1738651765617,0.00548884,99431.0,99421.0,0.00022428]
[1738651765820,0.00548884,99431.0,99426.0,0.150864]
[1738651766046,0.075,99432.0,99426.0,0.150864]
[1738651766282,0.00548687,99430.0,99424.0,0.150868]
[1738651766520,0.075,99432.0,99421.0,0.00022428]
[1738651766760,0.0457,99435.0,99434.0,0.150853]
[1738651767172,0.0457,99435.0,99422.0,0.10238506]
[1738651767176,0.0457,99435.0,99433.0,0.150855]
[1738651767680,0.02995477,99447.0,99443.0,0.150839]
[1738651767925,0.0487,99445.0,99443.0,0.150839]
[1738651768416,0.00551171,99444.0,99443.0,0.150839]
[1738651768654,0.00551171,99444.0,99442.0,0.15084]
[1738651770078,0.00551171,99444.0,99422.0,0.10238506]
[1738651770314,0.150847,99439.0,99431.0,0.150858]
[1738651770543,0.0487,99445.0,99431.0,0.150858]
[1738651770544,0.150845,99440.0,99431.0,0.150857]
[1738651770829,0.00550636,99438.0,99422.0,0.10238506]
[1738651771058,0.00550833,99439.0,99432.0,0.150855]
[1738651771472,0.00550359,99437.0,99422.0,0.10238506]
[1738651771679,0.0487,99445.0,99422.0,0.10238506]
[1738651771878,0.0487,99445.0,99438.0,0.150847]
[1738651772533,0.0487,99445.0,99432.0,0.20136528]
[1738651772735,0.018753,99444.0,99432.0,0.00022428]
[1738651773164,0.150854,99434.0,99432.0,0.00022428]
[1738651773372,0.0788,99433.0,99432.0,0.00022428]
[1738651775772,0.229655,99433.0,99432.0,0.00022428]
[1738651776195,0.0788,99433.0,99432.0,0.00022428]
[1738651776957,0.1285,99433.0,99432.0,0.00022428]
[1738651777584,0.14727785,99433.0,99432.0,0.00022428]
[1738651780445,0.279355,99433.0,99432.0,0.00022428]
[1738651780646,0.3072905,99433.0,99432.0,0.00022428]
[1738651780857,0.279355,99433.0,99432.0,0.00022428]
[1738651781242,0.1289,99442.0,99432.0,0.00022428]
[1738651781447,0.279742,99442.0,99433.0,0.150855]
[1738651781652,0.150843,99441.0,99433.0,0.150855]
[1738651781999,0.15085,99437.0,99432.0,0.00022428]
[1738651783158,0.00549561,99436.0,99434.0,0.150852]
[1738651783480,0.01878702,99436.0,99434.0,0.150852]
[1738651783705,0.01878702,99436.0,99435.0,0.10238506]
[1738651784169,0.01878702,99436.0,99435.0,0.25238506]
[1738651784419,0.01878702,99454.0,99453.0,0.150825]
[1738651784941,0.02431929,99454.0,99453.0,0.150825]
[1738651785429,0.01878702,99454.0,99453.0,0.150825]
[1738651785688,0.08877341,99455.0,99453.0,0.150825]
[1738651785917,0.0002485,99459.0,99449.0,0.201107]
[1738651786150,0.00553227,99454.0,99453.0,0.150825]
[1738651786384,0.0002485,99459.0,99453.0,0.10238506]
[1738651786615,0.0002485,99459.0,99457.0,0.150817]
[1738651788667,0.0002485,99459.0,99458.0,0.10238506]
[1738651792129,0.0002485,99459.0,99458.0,0.10372217]
[1738651792386,0.0002485,99459.0,99458.0,0.10238506]
[1738651795000,0.0002485,99459.0,99458.0,0.33238506]
[1738651796554,0.0002485,99459.0,99458.0,0.10238506]
[1738651797070,0.0002485,99459.0,99458.0,0.10372217]
[1738651797530,0.0002485,99459.0,99458.0,0.25372217]
[1738651797842,0.0002485,99459.0,99458.0,0.25238506]
[1738651803429,0.0002485,99459.0,99458.0,0.49238506]
[1738651805749,0.0002485,99459.0,99458.0,0.25238506]
[1738651807717,0.0002485,99459.0,99458.0,0.25260934]
[1738651811483,0.0002485,99459.0,99458.0,0.10260934]
[1738651811694,0.0002485,99459.0,99458.0,0.00022428]
[1738651812725,0.0855415,99459.0,99458.0,0.00022428]
[1738651813756,0.1334415,99459.0,99458.0,0.00022428]
[1738651813966,0.20208335,99459.0,99458.0,0.00022428]
[1738651814175,0.1334415,99459.0,99458.0,0.00022428]
[1738651817888,0.26882656,99459.0,99458.0,0.00022428]
[1738651818102,0.183829,99450.0,99432.0,0.00022428]
[1738651818308,0.275929,99450.0,99432.0,0.00022428]
[1738651818520,0.28218373,99450.0,99432.0,0.00022428]
[1738651818922,0.41756879,99450.0,99432.0,0.00022428]
[1738651819425,0.28318373,99450.0,99432.0,0.00022428]
[1738651820265,0.28318373,99450.0,99432.0,0.15108028]
[1738651820406,0.28218373,99450.0,99432.0,0.00022428]
[1738651820828,0.28218373,99450.0,99432.0,0.15107928]
[1738651821031,0.28218373,99450.0,99432.0,0.00022428]
[1738651821812,0.29149045,99450.0,99432.0,0.00022428]
[1738651822190,0.49724476,99450.0,99432.0,0.00022428]
[1738651823176,0.41687551,99450.0,99432.0,0.00022428]
[1738651823434,0.41687551,99450.0,99432.0,0.15107928]
[1738651823760,0.42687551,99450.0,99432.0,0.00022428]
[1738651825734,0.59559051,99450.0,99432.0,0.00022428]
[1738651826356,2.09559051,99450.0,99432.0,0.00022428]
[1738651827051,2.09759051,99450.0,99432.0,0.00022428]
[1738651827253,2.20008523,99450.0,99432.0,0.00022428]
[1738651828136,2.20708523,99450.0,99432.0,0.00022428]
[1738651828960,2.21708523,99450.0,99449.0,2.8e-07]
[1738651829318,0.310755,99433.0,99432.0,0.00022428]
[1738651829518,0.41933133,99433.0,99432.0,0.00022428]
[1738651829724,0.01,99415.0,99391.0,0.2279743]
[1738651829912,0.201209,99399.0,99391.0,0.2279743]
[1738651830123,0.1570068,99398.0,99391.0,0.2279743]
[1738651830375,0.232916,99393.0,99391.0,0.21816384]
[1738651830614,0.0466,99392.0,99368.0,0.0798]
[1738651830813,0.150921,99390.0,99372.0,0.10238506]
[1738651831038,0.20359383,99392.0,99384.0,0.150929]
[1738651831237,0.00606815,99389.0,99372.0,0.10285707]
[1738651831412,0.197518,99392.0,99384.0,0.150929]
[1738651831927,0.150939,99378.0,99372.0,0.00047201]
[1738651832230,0.15956583,99377.0,99372.0,0.00047201]
[1738651832427,0.15956583,99377.0,99372.0,0.00147201]
[1738651832602,0.00862483,99377.0,99376.0,0.150941]
[1738651832805,0.00862483,99377.0,99372.0,0.00047201]
[1738651833027,0.15093,99384.0,99374.0,0.150944]
[1738651833220,0.150933,99382.0,99372.0,0.15241901]
[1738651833422,0.00861786,99383.0,99372.0,0.00147201]
[1738651833627,0.201248,99380.0,99372.0,0.00147201]
[1738651833885,0.00861317,99382.0,99372.0,0.00147201]
[1738651834104,0.150946,99374.0,99372.0,0.00147201]
[1738651834445,0.00859513,99373.0,99372.0,0.00147201]
[1738651834648,0.00859513,99373.0,99372.0,0.00047201]
[1738651834933,0.00859513,99373.0,99372.0,0.00147201]
[1738651835795,0.21875721,99373.0,99372.0,0.00147201]
[1738651836003,0.25089653,99373.0,99372.0,0.00247201]
[1738651836218,0.32809653,99373.0,99372.0,0.00238145]
[1738651836436,0.41625198,99373.0,99372.0,0.00138145]
[1738651836856,0.43490849,99373.0,99372.0,0.00138145]
[1738651837069,0.32407706,99373.0,99372.0,0.00138145]
[1738651837288,0.29810004,99373.0,99372.0,0.00138145]
[1738651837496,0.29810004,99373.0,99372.0,0.00238145]
[1738651837690,0.32791653,99373.0,99372.0,0.00138145]
[1738651837909,0.33191653,99373.0,99372.0,0.00138145]
[1738651838104,0.42045398,99373.0,99372.0,0.00038145]
[1738651838316,0.150959,99365.0,99359.0,0.00020559]
[1738651838725,0.150964,99362.0,99359.0,0.00020559]
[1738651838931,0.00855885,99364.0,99359.0,0.00020559]
[1738651838932,0.150961,99363.0,99359.0,0.00020559]
[1738651839067,0.00855304,99361.0,99359.0,0.00020559]
[1738651839278,0.201272,99368.0,99359.0,0.00020559]
[1738651839560,0.150956,99367.0,99359.0,0.00020559]
[1738651839765,0.00855791,99366.0,99359.0,0.00020559]
[1738651839971,0.00855791,99366.0,99359.0,0.00120559]
[1738651840151,0.15951491,99366.0,99359.0,0.00120559]
[1738651840352,0.150961,99364.0,99359.0,0.00120559]
[1738651840698,0.150965,99361.0,99359.0,0.00120559]
[1738651841099,0.00854629,99360.0,99359.0,0.00120559]
[1738651841873,0.00854629,99360.0,99359.0,0.00220559]
[1738651842090,0.150963,99362.0,99359.0,0.00020559]
[1738651842260,0.00854629,99360.0,99359.0,0.00120559]
[1738651842436,0.150963,99362.0,99359.0,0.00120559]
[1738651842654,0.00854629,99360.0,99359.0,0.00120559]
[1738651842834,0.150965,99361.0,99359.0,0.00020559]
[1738651843081,0.04477049,99360.0,99359.0,0.00120559]
[1738651843275,0.04477049,99360.0,99359.0,0.00220559]
[1738651843276,0.00854629,99360.0,99359.0,0.00220559]
[1738651843503,0.150962,99363.0,99359.0,0.00220559]
[1738651843704,0.00855016,99362.0,99359.0,0.00120559]
[1738651843903,0.150966,99361.0,99359.0,0.00220559]
[1738651844081,0.01595162,99360.0,99359.0,0.00220559]
[1738651844285,0.02449791,99360.0,99359.0,0.00220559]
[1738651844490,0.00854629,99360.0,99359.0,0.00020559]
[1738651844693,0.00854629,99360.0,99359.0,0.00220559]
[1738651845094,0.00854629,99360.0,99359.0,0.00020559]
[1738651845536,0.00854629,99360.0,99359.0,0.00120559]
[1738651845949,0.150953,99369.0,99360.0,0.150966]
[1738651846156,0.15951579,99368.0,99360.0,0.150966]
[1738651846359,0.00856179,99368.0,99359.0,0.00120559]
[1738651846562,0.00856179,99368.0,99361.0,0.150964]
[1738651847059,0.00856179,99368.0,99366.0,0.150955]
[1738651847237,0.00856179,99368.0,99366.0,0.199455]
[1738651847548,0.01256627,99369.0,99366.0,0.199455]
[1738651847549,0.01256627,99369.0,99368.0,0.150954]
[1738651847962,4.72e-05,99373.0,99372.0,0.150947]
[1738651849331,4.72e-05,99373.0,99372.0,0.151947]
[1738651851127,4.72e-05,99373.0,99372.0,0.25433206]
[1738651851358,4.72e-05,99373.0,99372.0,0.40433206]
[1738651851560,4.72e-05,99373.0,99372.0,0.48203206]
[1738651851757,4.72e-05,99373.0,99372.0,0.53083206]
[1738651853163,4.72e-05,99373.0,99372.0,0.001]
[1738651853947,0.00863752,99373.0,99372.0,0.001]
[1738651854159,0.00863752,99373.0,99363.0,0.20128]
[1738651854362,4.72e-05,99373.0,99366.0,0.150956]
[1738651854589,0.00858187,99372.0,99362.0,0.201284]
[1738651854793,0.00858187,99372.0,99359.0,0.00020559]
[1738651854972,4.72e-05,99373.0,99368.0,0.150953]
[1738651855244,0.0001541,99373.0,99368.0,0.150953]
[1738651856774,0.0001541,99373.0,99367.0,0.201273]
[1738651857397,0.0001541,99373.0,99368.0,0.001]
[1738651857614,0.0001541,99373.0,99368.0,0.151952]
[1738651858030,0.0001541,99373.0,99368.0,0.150952]
[1738651858306,0.0001541,99373.0,99371.0,0.150949]
[1738651858517,0.0001541,99373.0,99371.0,0.25333406]
[1738651858720,0.0001541,99373.0,99372.0,0.17928506]
[1738651859755,0.0001541,99373.0,99372.0,0.37812346]
[1738651860001,0.0001541,99373.0,99372.0,0.37678506]
[1738651861155,0.0001541,99373.0,99372.0,0.37778506]
[1738651861350,0.0001541,99373.0,99372.0,0.37678506]
[1738651861751,0.0001541,99373.0,99372.0,0.37778506]
[1738651861962,0.0001541,99373.0,99372.0,0.37678506]
[1738651862981,0.0001541,99373.0,99372.0,0.39978506]
[1738651864942,1e-07,99373.0,99372.0,0.42854598]
[1738651865175,0.0001069,99391.0,99390.0,0.32392]
[1738651865401,0.00057949,99391.0,99390.0,0.78975869]
[1738651866765,0.00057949,99391.0,99390.0,0.99675869]
[1738651866960,0.00057949,99391.0,99390.0,0.75670506]
[1738651867882,0.00057949,99391.0,99390.0,0.71250506]
[1738651868307,0.00057949,99391.0,99390.0,0.72202148]
[1738651871809,0.00057949,99391.0,99390.0,0.64282148]
[1738651875543,0.00057949,99391.0,99390.0,0.72462148]
[1738651875970,4.9e-07,99391.0,99390.0,0.74762148]
[1738651876185,4.9e-07,99391.0,99390.0,0.79342148]
[1738651878501,0.0802,99437.0,99391.0,0.173]
[1738651878724,0.0802,99437.0,99431.0,0.150857]
[1738651879076,0.0802,99437.0,99432.0,0.150856]
[1738651879304,0.0802,99437.0,99430.0,0.150859]
[1738651879509,0.0802,99437.0,99431.0,0.150857]
[1738651880136,0.0802,99437.0,99422.0,0.20116]
[1738651880340,0.0495,99441.0,99423.0,0.10238506]
[1738651880560,0.00911929,99436.0,99432.0,0.150856]
[1738651880733,0.0495,99441.0,99427.0,0.16285503]
[1738651880734,0.0495,99441.0,99433.0,0.150855]
[1738651880969,0.0495,99441.0,99428.0,0.20115]
[1738651881268,0.0495,99441.0,99439.0,0.150845]
[1738651881606,0.0495,99441.0,99433.0,0.10238506]
[1738651882044,0.0495,99441.0,99420.0,0.15]
[1738651882045,0.0001068,99459.0,99435.0,0.15]
[1738651882256,0.00024862,99459.0,99458.0,0.150817]
[1738651882449,0.00024862,99459.0,99458.0,0.25320206]
[1738651882651,0.00024862,99459.0,99458.0,0.40320206]
[1738651883151,0.00024862,99459.0,99458.0,0.47880206]
[1738651883556,0.00024862,99459.0,99458.0,0.48812446]
[1738651883764,0.00024862,99459.0,99458.0,0.51112446]
[1738651886221,0.00024862,99459.0,99458.0,0.41252446]
[1738651887049,0.00024862,99459.0,99458.0,0.26252446]
[1738651887252,0.00024862,99459.0,99458.0,0.25320206]
[1738651887402,0.00024862,99459.0,99453.0,0.00943424]
[1738651887613,0.00024862,99459.0,99441.0,0.201124]
[1738651887813,0.00024862,99459.0,99442.0,0.10238506]
[1738651888039,0.00024862,99459.0,99416.0,0.24005363]
[1738651888040,0.150826,99452.0,99437.0,0.150848]